{"text_format":"1","workbook":"xlsx","n_sheets":7,"sheets":["MATRIZ DE INDICADORES","MAR-4","MAR-5","MAR-7","MAR-9","ACTUALIZACIONES","ITEM"],"not_rendered":{"charts":4,"images":3,"macros":1,"external_links":1,"defined_names":13,"comments":4,"pivot_tables":0},"unopened":[],"bounds":{"document_bytes":16777216,"sheet_cells":100000,"rows_first":2000,"rows_last":500,"rows_between":2000,"halvings":0,"cell_chars":16384,"cell_head_chars":4096},"cells_cut":0,"cells_raw":0,"read":"whole","date_system":"1900"}

{"sheet":"MATRIZ DE INDICADORES","index":0,"n_rows":48,"n_cols":21,"rows_kept":48,"cut":false,"hidden":false,"merged":[[23,20,27,20],[28,1,32,1],[28,2,32,2],[28,3,32,3],[28,4,32,4],[28,5,32,5],[28,6,32,6],[28,7,32,7],[28,8,32,8],[28,9,32,9],[28,10,32,10],[28,11,32,11],[28,18,32,18],[28,19,32,19],[28,20,32,20],[18,19,22,19],[18,20,22,20],[12,20,17,20],[23,1,27,1],[23,2,27,2],[23,3,27,3],[23,4,27,4],[23,5,27,5],[23,6,27,6],[23,7,27,7],[23,8,27,8],[23,9,27,9],[23,10,27,10],[23,11,27,11],[23,18,27,18],[23,19,27,19],[12,10,17,10],[12,11,17,11],[12,18,17,18],[12,19,17,19],[18,1,22,1],[18,2,22,2],[18,3,22,3],[18,4,22,4],[18,5,22,5],[18,6,22,6],[18,7,22,7],[18,8,22,8],[18,9,22,9],[18,10,22,10],[18,11,22,11],[18,18,22,18],[46,1,46,20],[47,1,47,20],[2,18,2,20],[3,18,3,20],[4,18,4,20],[9,1,10,20],[6,16,7,17],[12,1,17,1],[12,2,17,2],[12,3,17,3],[12,4,17,4],[12,5,17,5],[12,6,17,6],[12,7,17,7],[12,8,17,8],[12,9,17,9],[1,18,1,20],[1,1,4,2],[1,3,1,17],[2,3,2,17],[3,3,4,17]]}
[]
[null,null,null,"MACROPROCESO ESTRATÉGICO",null,null,null,null,null,null,null,null,null,null,null,null,null,null,"CÓDIGO: ESGr027"]
[null,null,null,"PROCESO GESTIÓN SISTEMAS INTEGRADOS - CALIDAD",null,null,null,null,null,null,null,null,null,null,null,null,null,null,"VERSIÓN: 8"]
[null,null,null,"MATRIZ DE MEDICIÓN Y SEGUIMIENTO A LOS PROCESOS DE GESTIÓN",null,null,null,null,null,null,null,null,null,null,null,null,null,null,"VIGENCIA: 2023-07-28"]
[null,null,null,null,null,null,null,null,null,null,null,null,null,null,null,null,null,null,"PÁGINA: 1 de 6"]
[]
[null,null,null,null,null,null,null,null,null,null,null,null,null,null,null,null,"FECHA DE ACTUALIZACIÓN:",null,"AÑO","MES","DÍA"]
[null,null,null,null,null,null,null,null,null,null,null,null,null,null,null,null,null,null,2023,4,13]
[]
[null,"ALINEACIÓN DE LOS INDICADORES CON LOS DOCUMENTOS ESTRATÉGICOS Y LOS OBJETIVOS DE CALIDAD"]
[]
[null,"PROCESO GESTIÓN","FRENTES DEL PLAN ESTRATÉGICO","LINEAMIENTOS DE LA POLÍTICA DE CALIDAD","OBJETIVOS DE CALIDAD","OBJETIVO GENERAL DEL PROCESO","OBJETIVOS ESPECÍFICOS","NOMBRE INDICADOR","FÓRMULA","TIPO DE INDICADOR","SEGUIMIENTO MEDICIÓN","META","ACTIVIDAD","RESPONSABLE DE LA ACTIVIDAD","¿QUÉ RECURSOS SE REQUIEREN?","FECHA EJECUCIÓN DE ACTIVIDADES","EVIDENCIA","¿CUÁNDO FINALIZARÁ?","RESULTADO ","NIVEL OBTENIDO","ACCESO"]
[null,"Admisiones y Registro ","Frente Estratégico VI: Organización Universitaria Digital.","Se legitima como una organización social del conocimiento y el aprendizaje que se compromete con el pensamiento basado en riesgos y el mejoramiento continuo mediante buenas prácticas administrativas y académicas en búsqueda de la acreditación de programas y la acreditación institucional","Lograr la acreditación de programas y la acreditación institucional de acuerdo a la planificación de las metas  institucionales resultantes de los ejercicios de autoevaluación y acreditación","Administrar y controlar las actividades de Admisiones y Registro, para garantizar el cumplimiento de los requisitos y normas vigentes sobre la selección, admisión, permanencia, promoción y graduación de los estudiantes de la Universidad de Cundinamarca.","\nAsignar los cupos disponibles por cada vigencia por medio del proceso de selección y admisión de estudiantes.\n\n\n\n","Tasa de admitidos (Capacidad instalada)","Número de admitidos conforme a lo cupos disponibles * 100 / cupos disponibles por registro calificado","Acreditación","SEMESTRAL",0.95,"Solicitar oferta académica a Vicerrectoria Académica para cada vigencia.","Jefe de Oficina de Admisiones y Registro - Vicerrectoria Academica.","Recurso Humano. Recurso tecnologico. ","SEMESTRAL (IPA   Y IIPA 2023)","Correo electronico de la oferta academica","VIGENCIA 2023",0.94,"BUENO","MAR-4"]
[null,null,null,null,null,null,null,null,null,null,null,null,"Parametrizar aplicativo Academusoft del formulario de Inscripcion.","Jefe de Oficina de Admisiones y Registro","Recurso tecnologico. ","SEMESTRAL (IPA   Y IIPA 2023)","Aplicativo academusoft parametrizado","VIGENCIA 2023"]
[null,null,null,null,null,null,null,null,null,null,null,null,"Preseleccionar considerando los mejores puntajes obtenidos en la prueba de estado ICFES.","Jefe de Oficina de Admisiones y Registro","Recurso tecnologico. ","SEMESTRAL (IPA   Y IIPA 2023)","Aplicativo academusoft parametrizado","VIGENCIA 2023"]
[null,null,null,null,null,null,null,null,null,null,null,null,"Aplicar pruebas y/o entrevistas de selección para los programas de\nPregrado","Director de Programa- Coordinadores","Recurso Humano y Tecnologico","SEMESTRAL (IPA   Y IIPA 2023)","Cronograma de pruebas  y Calendario Academico","VIGENCIA 2023"]
[null,null,null,null,null,null,null,null,null,null,null,null,"Verificar y consolidar resultados de las pruebas.","Jefe de Oficina de Admisiones y Registro - Funcionario de Admisione y Registro.","Recurso Humano ","SEMESTRAL (IPA   Y IIPA 2023)","Correo electronico con el listados de los resultados ","VIGENCIA 2023"]
[null,null,null,null,null,null,null,null,null,null,null,null,"Recepcionar listas de admitidos por parte de los directores de programa.","Funcionario Oficina de\nAdmisiones y Registro.- \nDirecciones de Programa.","Recurso Humano","SEMESTRAL (IPA   Y IIPA 2023)","Lista de admitidos .","VIGENCIA 2023"]
[null,"Admisiones y Registro ","Frente Estratégico VI: Organización Universitaria Digital.","Se legitima como una organización social del conocimiento y el aprendizaje que se compromete con el pensamiento basado en riesgos y el mejoramiento continuo mediante buenas prácticas administrativas y académicas en búsqueda de la acreditación de programas y la acreditación institucional","Lograr la acreditación de programas y la acreditación institucional de acuerdo a la planificación de las metas  institucionales resultantes de los ejercicios de autoevaluación y acreditación","Administrar y controlar las actividades de Admisiones y Registro, para garantizar el cumplimiento de los requisitos y normas vigentes sobre la selección, admisión, permanencia, promoción y graduación de los estudiantes de la Universidad de Cundinamarca.","Asegurar la matrícula académica del 95% de los admitidos, conforme a los cupos disponibles por periodo en la vigencia 2023.\n\n","Tasa de matriculados","Número de matriculados efectivos * 100 /  total de número de admitidos conforme a lo cupos disponibles","Acreditación","SEMESTRAL",0.95,"Solicitar la publicación del listado de admitidos a la Oficina Asesora de Comunicaciones.","Funcionario Oficina\nde la Admisiones y\nRegistro.","Recurso tecnologico. ","SEMESTRAL (IPA   Y IIPA 2023)","lista de admitidos publicados en la pagina wen institucional  .","VIGENCIA 2023",0.91,"BUENO","MAR-5"]
[null,null,null,null,null,null,null,null,null,null,null,null,"Parametrizar el sistema, (aplicativo\nAcademusoft) para el registro de la matrícula académica de los programas de pregrado","Jefe de Oficina de Admisiones y Registro","Recurso tecnologico. ","SEMESTRAL (IPA   Y IIPA 2023)","Aplicativo academusoft parametrizado","VIGENCIA 2023"]
[null,null,null,null,null,null,null,null,null,null,null,null,"Generar liquidación a estudiantes antiguos y nuevos regulares","Tesoreria ","Recurso tecnologico. ","SEMESTRAL (IPA   Y IIPA 2023)","Recibo de liquidacion ","VIGENCIA 2023"]
[null,null,null,null,null,null,null,null,null,null,null,null,"Solicitar a la oficina de Desarrollo  Académico los horarios base de todos los programas de pregrado de los estudiantes nuevos regulares.\n","Jefe y funcionario\noficina de\nAdmisiones y\nRegistro\nOficina de Apoyo\nAcadémico","Recurso Humano","SEMESTRAL (IPA   Y IIPA 2023)","Correo electronico de solicitud a Desarrollo Academico.","VIGENCIA 2023"]
[null,null,null,null,null,null,null,null,null,null,null,null,"Realizar el registro académico de los núcleos temáticos o campos de\naprendizaje de estudiantes nuevos\nregulares.","Jefe y funcionario oficina de Admisiones y Registro.","Recurso tecnologico. ","SEMESTRAL (IPA   Y IIPA 2023)","Horario del estudiante","VIGENCIA 2023"]
[null,"Admisiones y Registro ","Frente Estratégico VI: Organización Universitaria Digital.","Se legitima como una organización social del conocimiento y el aprendizaje que se compromete con el pensamiento basado en riesgos y el mejoramiento continuo mediante buenas prácticas administrativas y académicas en búsqueda de la acreditación de programas y la acreditación institucional","Lograr la acreditación de programas y la acreditación institucional de acuerdo a la planificación de las metas  institucionales resultantes de los ejercicios de autoevaluación y acreditación","Administrar y controlar las actividades de Admisiones y Registro, para garantizar el cumplimiento de los requisitos y normas vigentes sobre la selección, admisión, permanencia, promoción y graduación de los estudiantes de la Universidad de Cundinamarca.","Asegurar la actualización de información para el seguimiento a estudiantes con posible pérdida de condición de estudiante según normatividad vigente para la vigencia 2023.\n\n","Tasa de perdida de condición de estudiante ","Número de estudiantes que pierden condición de estudiante acorde con el reglamento estudiantil * 100 / total de estudiantes ","Acreditación","SEMESTRAL",0.02,"Descargar reporte de  los estudiantes con perdida de calidad de estudiante. ","Direccion de Sistemas y Tecnologia","Recurso tecnologico. ","SEMESTRAL (IPA   Y IIPA 2023)","Reporte de Estudiantes","VIGENCIA 2023",0.02,"EXCELENTE ","MAR-7"]
[null,null,null,null,null,null,null,null,null,null,null,null,"Aplicar perdidad de Calidad conforme a los acuerdos 010 y 027 (Reglamentos estudiantiles).","Direccion de Sistemas y Tecnologia","Recurso tecnologico. ","SEMESTRAL (IPA   Y IIPA 2023)","Reporte de Estudiantes con Perdida de Calidad de Estudiante","VIGENCIA 2023"]
[null,null,null,null,null,null,null,null,null,null,null,null,"Cambiar situacion academica del estudiante a \"Perdida de Calidad de estudiante\" en el aplicativo Ademosuf ","Direccion de Sistemas y Tecnologia","Recurso tecnologico. ","SEMESTRAL (IPA   Y IIPA 2023)","Cambio de situacion academica Aplicativo Academosuft","VIGENCIA 2023"]
[null,null,null,null,null,null,null,null,null,null,null,null,"Reportar estudiantes con perdida a Vice rectoria Academica. ","Jefe y funcionario oficina de Admisiones y Registro.","Recurso Humano","SEMESTRAL (IPA   Y IIPA 2023)","Correo electronico del listado de los estudiantes ","VIGENCIA 2023"]
[null,null,null,null,null,null,null,null,null,null,null,null,"Notificar  a cada estudiante de la Perdida de Calidad de Estudiante. ","Jefe y funcionario oficina de Admisiones y Registro.","Recurso Humano","SEMESTRAL (IPA   Y IIPA 2023)","Correo electronico de notificacion po cada estudiante.","VIGENCIA 2023"]
[null,"Admisiones y Registro ",null,"Se legitima como una organización social del conocimiento y el aprendizaje que se compromete con el pensamiento basado en riesgos y el mejoramiento continuo mediante buenas prácticas administrativas y académicas en búsqueda de la acreditación de programas y la acreditación institucional, enfocándose en el bienestar de la comunidad universitaria como factor constitutivo de la vida y la libertad y la consolidación de una organización universitaria inteligente con alma y corazón.","Mejorar continuamente el desempeño de los procesos a través de la implementación de buenas prácticas institucionales y de la aplicación de los mecanismos dispuestos por la universidad de Cundinamarca, para la constitución de  una organización universitaria inteligente con alma y corazón ","Administrar y controlar las actividades de Admisiones y Registro, para garantizar el cumplimiento de los requisitos y normas vigentes sobre la selección, admisión, permanencia, promoción y graduación de los estudiantes de la Universidad de Cundinamarca.","\nAnalizar el nivel de satisfacción de la comunidad universitaria para describir factores/ acciones de mejora en la vigencia 2023.\n\n","Percepción de satisfacción de los estudiantes","(Total encuestas calificación mayor a 4) *100 / Total encuestas",null,"SEMESTRAL",0.85,"Elaboracion de Encuesta instucional ","Direccion de Planeacion Institucional  ","Recurso tecnologico. ","SEMESTRAL (IPA   Y IIPA 2023)","Instrumento de encuesta","VIGENCIA 2023",0.75,"BUENO","MAR-9"]
[null,null,null,null,null,null,null,null,null,null,null,null,"Compartir encuesta institucional para su diligenciamiento. ","Direccion de Planeacion Institucional - Oficina de Admisiones y Registro. ","Recurso Humano","SEMESTRAL (IPA   Y IIPA 2023)","Codigo QR /LINK Instrumento de encuesta","VIGENCIA 2023"]
[null,null,null,null,null,null,null,null,null,null,null,null,"Aplicar encuesta institucional a la comunidad Universitaria.","Comunidad  Universitaria ","Recurso Humano. Recurso tecnologico. ","SEMESTRAL (IPA   Y IIPA 2023)","Codigo QR /LINK Instrumento de encuesta diligenciado.","VIGENCIA 2023"]
[null,null,null,null,null,null,null,null,null,null,null,null,"Solicitar resultados de Encuesta de la Oficina de Admisiones y Registro .","Funcionario de la Oficina de Admisiones y Registro. ","Recurso tecnologico. ","SEMESTRAL (IPA   Y IIPA 2023)","Resultado de encuesta.","VIGENCIA 2023"]
[null,null,null,null,null,null,null,null,null,null,null,null,"Analizar resultados de la Encuesta institucional de la Ofician de Admisiones y Registro .","Jefe y funcionario oficina de Admisiones y Registro.","Recurso Humano","SEMESTRAL (IPA   Y IIPA 2023)","Analisis de Encuesta indicadores","VIGENCIA 2023"]
[]
[]
[]
[]
[]
[]
[]
[]
[]
[]
[]
[]
[]
[null,"Diagonal 18 No. 20-29 Fusagasugá – Cundinamarca\nTeléfono (601)  8281483 Línea Gratuita 018000180414\nwww.ucundinamarca.edu.co   E-mail:  info@ucundinamarca.edu.co\nNIT: 890.680.062-2                                                                             "]
[null,"Documento controlado por el Sistema de Gestión de la Calidad\nAsegúrese que corresponde a la última versión consultando el Portal Institucional"]

{"sheet":"MAR-4","index":1,"n_rows":99,"n_cols":15,"rows_kept":99,"cut":false,"hidden":false,"merged":[[61,2,61,14],[62,2,62,14],[15,2,15,14],[16,2,16,3],[16,11,16,12],[16,13,16,14],[16,7,16,8],[16,9,16,10],[16,4,16,6],[17,11,18,12],[17,13,18,14],[17,2,18,3],[22,9,23,10],[19,2,21,3],[17,4,17,5],[17,6,17,10],[1,1,3,2],[4,2,7,3],[4,4,4,11],[4,12,4,14],[5,4,5,11],[5,12,5,14],[6,4,7,11],[6,12,6,14],[7,12,7,14],[18,4,18,5],[18,6,18,10],[9,2,10,14],[11,2,11,3],[11,4,11,7],[11,8,11,9],[11,10,11,14],[12,2,12,3],[12,4,12,14],[13,2,13,3],[13,4,13,14],[14,2,14,14],[19,11,19,14],[22,7,23,8],[22,13,23,14],[25,2,25,14],[33,9,33,14],[19,7,21,8],[19,4,21,6],[22,2,22,3],[22,4,22,6],[23,2,23,3],[23,4,23,6],[26,20,27,20],[26,9,26,14],[26,17,27,17],[26,18,27,19],[16,18,17,21],[18,21,25,21],[26,21,27,21],[27,9,32,14],[18,17,25,17],[18,18,25,19],[18,20,25,20],[16,15,17,15],[16,16,17,16],[16,17,17,17],[22,11,23,12],[19,9,21,10],[54,10,54,14],[55,2,55,5],[55,6,55,9],[55,10,55,14],[53,2,53,5],[53,6,53,9],[53,10,53,14],[54,2,54,5],[54,6,54,9],[56,10,56,14],[59,2,59,5],[59,6,59,9],[59,10,59,14],[57,2,57,5],[57,6,57,9],[57,10,57,14],[58,2,58,5],[58,6,58,9],[58,10,58,14],[56,2,56,5],[56,6,56,9],[40,9,40,14],[51,2,51,14],[52,2,52,5],[52,6,52,9],[52,10,52,14],[44,2,44,14],[26,2,42,8],[41,9,41,14],[34,9,39,14]]}
[]
[null,"      REGRESAR"]
[]
[]
[null,null,null,null,"MACROPROCESO ESTRATÉGICO",null,null,null,null,null,null,null,"CÓDIGO: ESGr027"]
[null,null,null,null,"PROCESO GESTIÓN SISTEMAS INTEGRADOS - CALIDAD",null,null,null,null,null,null,null,"VERSIÓN: 8"]
[null,null,null,null,"MATRIZ DE MEDICIÓN Y SEGUIMIENTO A LOS PROCESOS DE GESTIÓN",null,null,null,null,null,null,null,"VIGENCIA: 2023-07-28"]
[null,null,null,null,null,null,null,null,null,null,null,null,"PÁGINA: 2 de 6"]
[]
[null,null,"FICHA DE INDICADOR"]
[]
[null,null,"MACROPROCESO",null,"Misional",null,null,null,"NOMBRE DEL INDICADOR",null,"Tasa de admitidos (Capacidad instalada)"]
[null,null,"PROCESO GESTIÓN",null,"Admisiones y Registro"]
[null,null,"RESPONSABLE DE MEDICIÓN",null,"Jefe de Oficina Admisiones y Registro"]
[]
[null,null,"1. COMPORTAMIENTO DE INDICADOR"]
[null,null,"CLASIFICACIÓN DE LA MEDICIÓN ",null,1,null,null,"TIPO DE INDICADOR",null,"Acreditación",null,"META",null,0.95]
[null,null,"FORMULA",null,"NUMERADOR",null,"Número de admitidos conforme a lo cupos disponibles * 100",null,null,null,null,"UNIDAD DE MEDIDA",null,"Porcentaje"]
[null,null,null,null,"DENOMINADOR",null,"cupos disponibles por registro calificado"]
[null,null,"TENDENCIA",null,"Positiva",null,null,"NIVEL DE SEGREGACIÓN *",null,"Por Programa Académico",null,"ESCALA"]
[null,null,null,null,null,null,null,null,null,null,null,"Deficiente","Aceptable","Bueno","Excelente"]
[null,null,null,null,null,null,null,null,null,null,null,"0% - 69.9%","70% - 79.9%","80% - 95%",">95.1%"]
[null,null,"ORIGEN DE DATOS NUMERADOR",null,"Listado en Excel de inscritos y admitidos",null,null,"FRECUENCIA DE LA MEDICIÓN",null,"SEMESTRAL",null,"FRECUENCIA DE RESULTADO",null,"SEMESTRAL"]
[null,null,"ORIGEN DE DATOS DENOMINADOR",null,"Registros calificados"]
[]
[null,null,"RESULTADOS"]
[null,null,null,null,null,null,null,null,null,"ANÁLISIS DE DATOS\nLos datos indican un crecimiento en los acompañamientos entre el primer trimestre y \nel segundo trimestre de mas del 100%, por la contratación del personal de la oficina\nEn el tercer trimestre se muestra un decrecimiento con respecto al periodo anterior\npor las vacaciones a mitad de año, las personas se reintegraron entre julio y agosto."]
[null,null,null,null,null,null,null,null,null,"Para la vigencia IPA 2023, se realizó la apertura al proceso de inscripción, selección y admisión en la sede, seccionales y extensiones de acuerdo a la oferta académica de los programas de pregrado, la cual inició con la publicación en el portal web institucional, (inscripción en línea), desde el 03 de abril al 03 de mayo de 2023 conforme al calendario académico, con el fin de que los aspirantes realizaran su inscripción de manera efectiva, cabe resaltar  que para la anterior vigencia y está presente, se da apertura a dos programas académicos como Ingeniería de Software en la Extensión Soacha complementando la Tecnología de Software existente e Ingeniería Industrial en la extensión de Chía. Este proceso se encuentra reglamentado bajo el Acuerdo 001 de 2007, una vez la inscripción se inicia el proceso de preselección de aspirantes los cuales presentan las pruebas correspondientes. Teniendo en cuenta los resultados del proceso se genera el listado de admitidos a los programas académicos los cuales fueron publicados en el portal web institucional, para conocimiento de la comunidad en general. \nRespecto a los cupos de cada programa académico serán establecidos de acuerdo al registro calificado vigente, los cupos para la admisión IPA 2023 fueron establecidos por directriz del Consejo Académico los cuales algunos programas fueron reducidos de acuerdo al comportamiento de las inscripciones."]
[]
[]
[]
[]
[]
[null,null,null,null,null,null,null,null,null,"ACCIÓN FORMULADA\nReformular la meta para el próximo año dependiendo de los recursos asignados."]
[null,null,null,null,null,null,null,null,null,"Para este proceso de inscripción, selección y admisión  se estableceran acciones complementarias como el trabajo mancomunado con la Dirección de Bienestar Universitario, para optimizar los tiempos, recursos dispuesto para la presentación de pruebas, la consecución de cronogramas con fechas y tiempos establecidos por aspirante para la entrevista con las coordinaciones de cada  programa académico, también la estrategia de divulgación como las visitas a los colegios de públicos y privados del Municipio con el fin dar a conocer la oferta académica de la Universidad de Cundinamarca, asistencia a ferias Universitarias,  divulgación por el portal web institucional, redes sociales junto a la Oficina Asesora de Comunicaciones para la población en proceso de selección, que permitieron dar continuidad al procedimiento de forma ágil y generar la publicación de los listados de admitidos en los tiempos señalados dentro del calendario académico, para así, analizar la escogencia de los aspirantes admitidos como figura opcional, asegurando que la disponibilidad de cupos según registros calificados por programas académicos sean aprovechados en su totalidad."]
[]
[]
[]
[]
[]
[null,null,null,null,null,null,null,null,null,"RESPONSABLE "]
[null,null,null,null,null,null,null,null,null,{"$f":"E14","v":"Jefe de Oficina Admisiones y Registro"}]
[]
[]
[null,null,"PERIODO DE EVALUACIÓN"]
[null,null,"MES",{"$f":"IF(J23=\"MENSUAL\",\"ENERO\",IF(J23=\"TRIMESTRAL\",\"MARZO\",IF(J23=\"SEMESTRAL\",\"JUNIO\",IF(J23=\"ANUAL\",YEAR(TODAY()),\"\"))))","v":"JUNIO"},{"$f":"IF(J23=\"MENSUAL\",\"FEBRERO\",IF(J23=\"TRIMESTRAL\",\"JUNIO\",IF(J23=\"SEMESTRAL\",\"DICIEMBRE\",\"\")))","v":"DICIEMBRE"},{"$f":"IF(J23=\"MENSUAL\",\"MARZO\",IF(J23=\"TRIMESTRAL\",\"SEPTIEMBRE\",\"\"))","v":""},{"$f":"IF(J23=\"MENSUAL\",\"ABRIL\",IF(J23=\"TRIMESTRAL\",\"DICIEMBRE\",\"\"))","v":""},{"$f":"IF(J23=\"MENSUAL\",\"MAYO\",\"\")","v":""},{"$f":"IF(J23=\"MENSUAL\",\"JUNIO\",\"\")","v":""},{"$f":"IF(J23=\"MENSUAL\",\"JULIO\",\"\")","v":""},{"$f":"IF(J23=\"MENSUAL\",\"AGOSTO\",\"\")","v":""},{"$f":"IF(J23=\"MENSUAL\",\"SEPTIEMBRE\",\"\")","v":""},{"$f":"IF(J23=\"MENSUAL\",\"OCTUBRE\",\"\")","v":""},{"$f":"IF(J23=\"MENSUAL\",\"NOVIEMBRE\",\"\")","v":""},{"$f":"IF(J23=\"MENSUAL\",\"DICIEMBRE\",\"\")","v":""}]
[null,null,{"$f":"G18","v":"Número de admitidos conforme a lo cupos disponibles * 100"},1451]
[null,null,{"$f":"G19","v":"cupos disponibles por registro calificado"},1538]
[null,null,"VALOR ",{"$f":"+D47/D48","v":0.94343302990897271},{"$f":"IFERROR(IF($E$17=1,E47/E48,IF($E$17=2,E47,\"\")),\"\")","v":""},"","","","","","","","","",""]
[null,null,"META PONDERADA",0.95,null,null,null,{"$f":"IF(AND($N$23=\"ANUAL\",$J$23=\"MENSUAL\"),$N$17/12+G50,IF(AND(N23=\"SEMESTRAL\",J23=\"MENSUAL\"),N17/6+G50,IF(AND(N23=\"TRIMESTRAL\",J23=\"MENSUAL\"),N17/3+G50,IF(AND(N23=\"MENSUAL\",J23=\"MENSUAL\"),N17,\"\"))))","v":""},{"$f":"IF(AND($N$23=\"ANUAL\",$J$23=\"MENSUAL\"),$N$17/12+H50,IF(AND(N23=\"SEMESTRAL\",J23=\"MENSUAL\"),N17/6+H50,IF(AND(N23=\"TRIMESTRAL\",J23=\"MENSUAL\"),N17/3+H50,IF(AND(N23=\"MENSUAL\",J23=\"MENSUAL\"),N17,\"\"))))","v":""},{"$f":"IF(AND($N$23=\"ANUAL\",$J$23=\"MENSUAL\"),$N$17/12+I50,IF(AND(N23=\"SEMESTRAL\",J23=\"MENSUAL\"),N17/6,IF(AND(N23=\"TRIMESTRAL\",J23=\"MENSUAL\"),N17/3,IF(AND(N23=\"MENSUAL\",J23=\"MENSUAL\"),N17,\"\"))))","v":""},{"$f":"IF(AND($N$23=\"ANUAL\",$J$23=\"MENSUAL\"),$N$17/12+J50,IF(AND(N23=\"SEMESTRAL\",J23=\"MENSUAL\"),N17/6+J50,IF(AND(N23=\"TRIMESTRAL\",J23=\"MENSUAL\"),N17/3+J50,IF(AND(N23=\"MENSUAL\",J23=\"MENSUAL\"),N17,\"\"))))","v":""},{"$f":"IF(AND($N$23=\"ANUAL\",$J$23=\"MENSUAL\"),$N$17/12+K50,IF(AND(N23=\"SEMESTRAL\",J23=\"MENSUAL\"),N17/6+K50,IF(AND(N23=\"TRIMESTRAL\",J23=\"MENSUAL\"),N17/3+K50,IF(AND(N23=\"MENSUAL\",J23=\"MENSUAL\"),N17,\"\"))))","v":""},{"$f":"IF(AND($N$23=\"ANUAL\",$J$23=\"MENSUAL\"),$N$17/12+L50,IF(AND(N23=\"SEMESTRAL\",J23=\"MENSUAL\"),N17/6+L50,IF(AND(N23=\"TRIMESTRAL\",J23=\"MENSUAL\"),N17/3,IF(AND(N23=\"MENSUAL\",J23=\"MENSUAL\"),N17,\"\"))))","v":""},{"$f":"IF(AND($N$23=\"ANUAL\",$J$23=\"MENSUAL\"),$N$17/12+M50,IF(AND(N23=\"SEMESTRAL\",J23=\"MENSUAL\"),N17/6+M50,IF(AND(N23=\"TRIMESTRAL\",J23=\"MENSUAL\"),N17/3+M50,IF(AND(N23=\"MENSUAL\",J23=\"MENSUAL\"),N17,\"\"))))","v":""},{"$f":"IF(AND($N$23=\"ANUAL\",$J$23=\"MENSUAL\"),$N$17/12+N50,IF(AND(N23=\"SEMESTRAL\",J23=\"MENSUAL\"),N17/6+N50,IF(AND(N23=\"TRIMESTRAL\",J23=\"MENSUAL\"),N17/3+N50,IF(AND(N23=\"MENSUAL\",J23=\"MENSUAL\"),N17,\"\"))))","v":""}]
[]
[null,null,"NIVEL DE SEGREGACIÓN *"]
[null,null,"UNIDAD SEGREGADA (Ej. Facultad, Programa Académico, Área)",null,null,null,"RESULTADO",null,null,null,"ANALISIS DE DATOS SEGREGADO"]
[null,null,"Sede Fusagasugá",null,null,null,{"$f":"375/369","v":1.0162601626016261},null,null,null,"Del total de los cupos disponibles según registros calificados por programas  en la Sede Fusagasugá siendo 369, se admiten en listados 375 en los diferentes programas académicos. "]
[null,null,"Seccional Girardot",null,null,null,{"$f":"136/145","v":0.93793103448275861},null,null,null,"Del total de los cupos disponibles según registros calificados por programas  en la Seccional Girardot siendo 145 , se admiten en listados 136  en los diferentes programas académicos. "]
[null,null,"Seccional Ubaté",null,null,null,{"$f":"144/175","v":0.82285714285714284},null,null,null,"Del total de los cupos disponibles según registros calificados por programas  en la Seccional Ubate siendo 175, se admiten en listados 144 en los diferentes programas académicos. "]
[null,null,"Extensión Facatativá",null,null,null,{"$f":"379/355","v":1.0676056338028168},null,null,null,"Del total de los cupos disponibles según registros calificados por programas  en la Extensión Facatativa siendo 355, se admiten en listados 379 en los diferentes programas académicos. "]
[null,null,"Extensión Chía",null,null,null,{"$f":"207/280","v":0.73928571428571432},null,null,null,"Del total de los cupos disponibles según registros calificados por programas  en la Extensión Chía siendo 280, se admiten en listados 207 en los diferentes programas académicos. "]
[null,null,"Extensión Zipaquirá",null,null,null,{"$f":"20/20","v":1},null,null,null,"Del total de los cupos disponibles según registros calificados por programas  en la Extension Zipaquira siendo 20, se admiten en listados 20 en los diferentes programas académicos. "]
[null,null,"Extensión Soacha",null,null,null,{"$f":"188/194","v":0.96907216494845361},null,null,null,"Del total de los cupos disponibles según registros calificados por programas  en la Extension Soacha siendo 194, se admiten en listados 188 en los diferentes programas académicos. "]
[]
[null,null,"Diagonal 18 No. 20-29 Fusagasugá – Cundinamarca\nTeléfono (601)  8281483 Línea Gratuita 018000180414\nwww.ucundinamarca.edu.co   E-mail:  info@ucundinamarca.edu.co\nNIT: 890.680.062-2                                                                             "]
[null,null,"Documento controlado por el Sistema de Gestión de la Calidad\nAsegúrese que corresponde a la última versión consultando el Portal Institucional"]
[]
[]
[]
[]
[]
[]
[]
[]
[]
[null,null,null,null,null,null,"Estratégico",null,null,"Eficacia"]
[null,null,null,null,null,null,"Misional",null,null,"Eficiencia"]
[null,null,null,null,null,null,"Apoyo",null,null,"Acreditación"]
[null,null,null,null,null,null,"Seguimiento, Medición, Análisis y Evaluación",null,null,"Positiva"]
[null,null,null,null,null,null,"Direccionamiento Estratégico",null,null,"Negativa"]
[null,null,null,null,null,null,"Planeación Institucional",null,null,"Por Unidad Regional"]
[null,null,null,null,null,null,"Proyectos Especiales y Relaciones Interinstitucionales",null,null,"Por Facultad"]
[null,null,null,null,null,null,"Sistemas Integrados",null,null,"Por Programa Académico"]
[null,null,null,null,null,null,"Autoevaluación y Acreditación",null,null,"Por área"]
[null,null,null,null,null,null,"Comunicaciones",null,null,"Por Laboratorio"]
[null,null,null,null,null,null,"Formación y Aprendizaje",null,null,"Otros"]
[null,null,null,null,null,null,"Ciencia, Tecnología e Innovación",null,null,"No Aplica"]
[null,null,null,null,null,null,"Interacción Social Universitaria"]
[null,null,null,null,null,null,"Bienestar Universitario"]
[null,null,null,null,null,null,"Admisiones y Registro"]
[null,null,null,null,null,null,"Graduados"]
[null,null,null,null,null,null,"Dialogando con el Mundo"]
[null,null,null,null,null,null,"Talento Humano"]
[null,null,null,null,null,null,"Jurídica"]
[null,null,null,null,null,null,"Financiera"]
[null,null,null,null,null,null,"Sistemas y Tecnología"]
[null,null,null,null,null,null,"Bienes y Servicios"]
[null,null,null,null,null,null,"Documental"]
[null,null,null,null,null,null,"Apoyo Académico"]
[null,null,null,null,null,null,"Control Interno"]
[null,null,null,null,null,null,"Control Disciplinario"]
[null,null,null,null,null,null,"Servicio de Atención al Ciudadano"]

{"sheet":"MAR-5","index":2,"n_rows":98,"n_cols":15,"rows_kept":98,"cut":false,"hidden":false,"merged":[[61,2,61,14],[62,2,62,14],[58,2,58,5],[58,6,58,9],[58,10,58,14],[59,2,59,5],[59,6,59,9],[59,10,59,14],[56,2,56,5],[56,6,56,9],[56,10,56,14],[57,2,57,5],[57,6,57,9],[57,10,57,14],[54,2,54,5],[54,6,54,9],[54,10,54,14],[55,2,55,5],[55,6,55,9],[55,10,55,14],[51,2,51,14],[52,2,52,5],[52,6,52,9],[52,10,52,14],[53,2,53,5],[53,6,53,9],[53,10,53,14],[26,15,27,15],[27,9,32,14],[33,9,33,14],[34,9,39,14],[40,9,40,14],[44,2,44,14],[25,2,25,14],[26,2,42,8],[26,9,26,14],[42,9,42,14],[41,9,41,14],[22,7,23,8],[14,2,14,14],[22,4,22,6],[23,4,23,6],[19,2,21,3],[19,7,21,8],[19,11,19,14],[19,9,21,10],[19,4,21,6],[22,13,23,14],[22,2,22,3],[23,2,23,3],[22,9,23,10],[22,11,23,12],[17,2,18,3],[17,4,17,5],[16,2,16,3],[16,11,16,12],[17,11,18,12],[17,6,17,10],[18,6,18,10],[16,9,16,10],[16,7,16,8],[16,4,16,6],[5,12,5,14],[6,4,7,11],[6,12,6,14],[7,12,7,14],[16,15,17,15],[16,13,16,14],[17,13,18,14],[18,4,18,5],[1,1,3,2],[4,2,7,3],[4,4,4,11],[15,2,15,14],[8,2,8,14],[9,2,10,14],[11,2,11,3],[11,4,11,7],[11,8,11,9],[11,10,11,14],[12,2,12,3],[12,4,12,14],[13,2,13,3],[13,4,13,14],[4,12,4,14],[5,4,5,11]]}
[]
[null,"      REGRESAR"]
[]
[]
[null,null,null,null,"MACROPROCESO ESTRATÉGICO",null,null,null,null,null,null,null,"CÓDIGO: ESGr027"]
[null,null,null,null,"PROCESO GESTIÓN SISTEMAS INTEGRADOS - CALIDAD",null,null,null,null,null,null,null,"VERSIÓN: 8"]
[null,null,null,null,"MATRIZ DE MEDICIÓN Y SEGUIMIENTO A LOS PROCESOS DE GESTIÓN",null,null,null,null,null,null,null,"VIGENCIA: 2023-07-28"]
[null,null,null,null,null,null,null,null,null,null,null,null,"PÁGINA: 3 de 6"]
[]
[null,null,"FICHA DE INDICADOR"]
[]
[null,null,"MACROPROCESO",null,"Misional",null,null,null,"NOMBRE DEL INDICADOR",null,"Tasa de matriculados"]
[null,null,"PROCESO GESTIÓN",null,"Admisiones y Registro"]
[null,null,"RESPONSABLE DE MEDICIÓN",null,"Jefe de Oficina Admisiones y Registro"]
[]
[null,null,"1. COMPORTAMIENTO DE INDICADOR"]
[null,null,"CLASIFICACIÓN DE LA MEDICIÓN",null,4,null,null,"TIPO DE INDICADOR",null,"Acreditación",null,"META",null,0.95]
[null,null,"FORMULA",null,"NUMERADOR",null,"Número de matriculados efectivos * 100",null,null,null,null,"UNIDAD DE MEDIDA",null,"Porcentaje"]
[null,null,null,null,"DENOMINADOR",null,"total de número de admitidos conforme a lo cupos disponibles"]
[null,null,"TENDENCIA",null,"Positiva",null,null,"NIVEL DE SEGREGACIÓN *",null,"Por Programa Académico",null,"ESCALA"]
[null,null,null,null,null,null,null,null,null,null,null,"Deficiente","Aceptable","Bueno","Excelente"]
[null,null,null,null,null,null,null,null,null,null,null,"0% - 69.9%","70% - 79.9%","80% - 95%",">95.1%"]
[null,null,"ORIGEN DE DATOS NUMERADOR",null,"Listado en Excel de inscritos y admitidos",null,null,"FRECUENCIA DE LA MEDICIÓN",null,"SEMESTRAL",null,"FRECUENCIA DE RESULTADO",null,"SEMESTRAL"]
[null,null,"ORIGEN DE DATOS DENOMINADOR",null,"Listado en Excel de inscritos y admitidos"]
[]
[null,null,"RESULTADOS"]
[null,null,null,null,null,null,null,null,null,"ANÁLISIS DE DATOS"]
[null,null,null,null,null,null,null,null,null,"Los aspirantes admitidos deben cancelar su matrícula financiera dentro de los plazos establecidos en el calendario académico; si por alguna razón desiste del cupo o no realiza el pago se ha establecido la figura de aspirante opcional, que se deriva de los aspirantes que cumplen con todos los requisitos de selección, pero quedan excluidos de la lista de admitidos teniendo en cuenta los cupos establecidos por cada programa académico priorizados por el puntaje obtenido.\nAun así, en su gran mayoría ocuparon los cupos disponibles admitidos, algunos no legalizan su matrícula financiera por diversos factores, entre ellos.\n• Admitidos que nos son beneficiarios de la política de gratuidad, por lo tanto, desisten del cupo.\n•  Han presentado proceso de admisión en otras IES. \n•  Falta de atención a las fechas límites de pago, establecidas en el calendario académico.\n• Desistimiento del cupo por motivos personales.\n\nNota: Las fechas establecidas dentro de calendario académico para que los admitidos puedan legalizar su matrícula financiera están aprobadas por consejo académico y publicadas en la página web institucional.\n"]
[]
[]
[]
[]
[]
[null,null,null,null,null,null,null,null,null,"ACCIÓN FORMULADA"]
[null,null,null,null,null,null,null,null,null,"Para continuar con el proceso de admisión, la oficina de Admisiones y registro se brindará acompañamiento por vía zoom, llamada telefónica e instructivos, a cada uno de los admitidos para el diligenciamiento de la CARACTERIZACIÓN INSTITUCIONAL el cual es insumo para acceder a la Política de Gratuidad bajo el Decreto 1667 de 2021, requisito para la emisión del recibo de pago y finalizar la matricula con éxito. Una vez se cuente con el pago de la matrícula de todos los admitidos, se procede a realizar el registro académico de los estudiantes nuevos regulares. \nFinalmente, Se logra evidenciar el compromiso adquirido tanto por las partes interesadas como por la Comunidad Universitaria – Administrativa y gubernamental, para brindar apoyo al pago de matrícula.\n"]
[]
[]
[]
[]
[]
[null,null,null,null,null,null,null,null,null,"RESPONSABLE "]
[null,null,null,null,null,null,null,null,null,{"$f":"E14","v":"Jefe de Oficina Admisiones y Registro"}]
[]
[]
[null,null,"PERIODO DE EVALUACIÓN"]
[null,null,"MES",{"$f":"IF(J23=\"MENSUAL\",\"ENERO\",IF(J23=\"TRIMESTRAL\",\"MARZO\",IF(J23=\"SEMESTRAL\",\"JUNIO\",IF(J23=\"ANUAL\",YEAR(TODAY()),\"\"))))","v":"JUNIO"},{"$f":"IF(J23=\"MENSUAL\",\"FEBRERO\",IF(J23=\"TRIMESTRAL\",\"JUNIO\",IF(J23=\"SEMESTRAL\",\"DICIEMBRE\",\"\")))","v":"DICIEMBRE"},{"$f":"IF(J23=\"MENSUAL\",\"MARZO\",IF(J23=\"TRIMESTRAL\",\"SEPTIEMBRE\",\"\"))","v":""},{"$f":"IF(J23=\"MENSUAL\",\"ABRIL\",IF(J23=\"TRIMESTRAL\",\"DICIEMBRE\",\"\"))","v":""},{"$f":"IF(J23=\"MENSUAL\",\"MAYO\",\"\")","v":""},{"$f":"IF(J23=\"MENSUAL\",\"JUNIO\",\"\")","v":""},{"$f":"IF(J23=\"MENSUAL\",\"JULIO\",\"\")","v":""},{"$f":"IF(J23=\"MENSUAL\",\"AGOSTO\",\"\")","v":""},{"$f":"IF(J23=\"MENSUAL\",\"SEPTIEMBRE\",\"\")","v":""},{"$f":"IF(J23=\"MENSUAL\",\"OCTUBRE\",\"\")","v":""},{"$f":"IF(J23=\"MENSUAL\",\"NOVIEMBRE\",\"\")","v":""},{"$f":"IF(J23=\"MENSUAL\",\"DICIEMBRE\",\"\")","v":""}]
[null,null,{"$f":"G18","v":"Número de matriculados efectivos * 100"},1327]
[null,null,{"$f":"G19","v":"total de número de admitidos conforme a lo cupos disponibles"},1451]
[null,null,"VALOR ",{"$f":"+D47/D48","v":0.91454169538249486},{"$f":"IFERROR(IF($E$17=1,E47/E48,IF($E$17=2,E47,\"\")),\"\")","v":""},"","","","","","","","","",""]
[null,null,"META PONDERADA",0.95,null,{"$f":"IF(AND(N23=\"ANUAL\",J23=\"MENSUAL\"),N17/12+E50,IF(AND(N23=\"ANUAL\",J23=\"TRIMESTRAL\"),N17/4+E50,IF(AND(N23=\"SEMESTRAL\",J23=\"MENSUAL\"),N17/6+E50,IF(AND(N23=\"SEMESTRAL\",J23=\"TRIMESTRAL\"),N17/2,IF(AND(N23=\"TRIMESTRAL\",J23=\"MENSUAL\"),N17/3+E50,IF(AND(N23=\"TRIMESTRAL\",J23=\"TRIMESTRAL\"),N17,IF(AND(N23=\"MENSUAL\",J23=\"MENSUAL\"),N17,\"\")))))))","v":""},{"$f":"IF(AND(N23=\"ANUAL\",J23=\"MENSUAL\"),N17/12+F50,IF(AND(N23=\"ANUAL\",J23=\"TRIMESTRAL\"),N17/4+F50,IF(AND(N23=\"SEMESTRAL\",J23=\"MENSUAL\"),N17/6+F50,IF(AND(N23=\"SEMESTRAL\",J23=\"TRIMESTRAL\"),N17/2+F50,IF(AND(N23=\"TRIMESTRAL\",J23=\"MENSUAL\"),N17/3,IF(AND(N23=\"TRIMESTRAL\",J23=\"TRIMESTRAL\"),N17,IF(AND(N23=\"MENSUAL\",J23=\"MENSUAL\"),N17,\"\")))))))","v":""},{"$f":"IF(AND($N$23=\"ANUAL\",$J$23=\"MENSUAL\"),$N$17/12+G50,IF(AND(N23=\"SEMESTRAL\",J23=\"MENSUAL\"),N17/6+G50,IF(AND(N23=\"TRIMESTRAL\",J23=\"MENSUAL\"),N17/3+G50,IF(AND(N23=\"MENSUAL\",J23=\"MENSUAL\"),N17,\"\"))))","v":""},{"$f":"IF(AND($N$23=\"ANUAL\",$J$23=\"MENSUAL\"),$N$17/12+H50,IF(AND(N23=\"SEMESTRAL\",J23=\"MENSUAL\"),N17/6+H50,IF(AND(N23=\"TRIMESTRAL\",J23=\"MENSUAL\"),N17/3+H50,IF(AND(N23=\"MENSUAL\",J23=\"MENSUAL\"),N17,\"\"))))","v":""},{"$f":"IF(AND($N$23=\"ANUAL\",$J$23=\"MENSUAL\"),$N$17/12+I50,IF(AND(N23=\"SEMESTRAL\",J23=\"MENSUAL\"),N17/6,IF(AND(N23=\"TRIMESTRAL\",J23=\"MENSUAL\"),N17/3,IF(AND(N23=\"MENSUAL\",J23=\"MENSUAL\"),N17,\"\"))))","v":""},{"$f":"IF(AND($N$23=\"ANUAL\",$J$23=\"MENSUAL\"),$N$17/12+J50,IF(AND(N23=\"SEMESTRAL\",J23=\"MENSUAL\"),N17/6+J50,IF(AND(N23=\"TRIMESTRAL\",J23=\"MENSUAL\"),N17/3+J50,IF(AND(N23=\"MENSUAL\",J23=\"MENSUAL\"),N17,\"\"))))","v":""},{"$f":"IF(AND($N$23=\"ANUAL\",$J$23=\"MENSUAL\"),$N$17/12+K50,IF(AND(N23=\"SEMESTRAL\",J23=\"MENSUAL\"),N17/6+K50,IF(AND(N23=\"TRIMESTRAL\",J23=\"MENSUAL\"),N17/3+K50,IF(AND(N23=\"MENSUAL\",J23=\"MENSUAL\"),N17,\"\"))))","v":""},{"$f":"IF(AND($N$23=\"ANUAL\",$J$23=\"MENSUAL\"),$N$17/12+L50,IF(AND(N23=\"SEMESTRAL\",J23=\"MENSUAL\"),N17/6+L50,IF(AND(N23=\"TRIMESTRAL\",J23=\"MENSUAL\"),N17/3,IF(AND(N23=\"MENSUAL\",J23=\"MENSUAL\"),N17,\"\"))))","v":""},{"$f":"IF(AND($N$23=\"ANUAL\",$J$23=\"MENSUAL\"),$N$17/12+M50,IF(AND(N23=\"SEMESTRAL\",J23=\"MENSUAL\"),N17/6+M50,IF(AND(N23=\"TRIMESTRAL\",J23=\"MENSUAL\"),N17/3+M50,IF(AND(N23=\"MENSUAL\",J23=\"MENSUAL\"),N17,\"\"))))","v":""},{"$f":"IF(AND($N$23=\"ANUAL\",$J$23=\"MENSUAL\"),$N$17/12+N50,IF(AND(N23=\"SEMESTRAL\",J23=\"MENSUAL\"),N17/6+N50,IF(AND(N23=\"TRIMESTRAL\",J23=\"MENSUAL\"),N17/3+N50,IF(AND(N23=\"MENSUAL\",J23=\"MENSUAL\"),N17,\"\"))))","v":""}]
[]
[null,null,"NIVEL DE SEGREGACIÓN *"]
[null,null,"UNIDAD SEGREGADA (Ej. Facultad, Programa Académico, Área)",null,null,null,"RESULTADO",null,null,null,"ANALISIS DE DATOS SEGREGADO"]
[null,null,"Sede Fusagasugá",null,null,null,{"$f":"339/375","v":0.90400000000000003},null,null,null,"Finalizado el proceso de inscripcion, admision y selección, de los 375  admitidos para la Sede Fusagasugá, 339 de ellos realizan su matricula financiera y academica, finalizando el proceso con éxito."]
[null,null,"Seccional Girardot",null,null,null,{"$f":"128/136","v":0.94117647058823528},null,null,null,"Finalizado el proceso de inscripcion, admision y selección, de los 136  admitidos para la Seccional Girardot, 128 de ellos realizan su matricula financiera y academica, finalizando el proceso con éxito."]
[null,null,"Seccional Ubaté",null,null,null,{"$f":"137/144","v":0.95138888888888884},null,null,null,"Finalizado el proceso de inscripcion, admision y selección, de los 144 admitidos para la Sede Ubaté, 137 de ellos realizan su matricula financiera y academica, finalizando el proceso con éxito."]
[null,null,"Extensión Facatativá",null,null,null,{"$f":"349/379","v":0.920844327176781},null,null,null,"Finalizado el proceso de inscripcion, admision y selección, de los 379  admitidos para la Extensión Facatativa, 349 de ellos realizan su matricula financiera y academica, finalizando el proceso con éxito."]
[null,null,"Extensión Chía",null,null,null,{"$f":"183/207","v":0.88405797101449279},null,null,null,"Finalizado el proceso de inscripcion, admision y selección, de los 207 admitidos para la Extension Chía, 183 de ellos realizan su matricula financiera y academica, finalizando el proceso con éxito."]
[null,null,"Extensión Zipaquirá",null,null,null,{"$f":"20/20","v":1},null,null,null,"Finalizado el proceso de inscripcion, admision y selección, de los 20 admitidos para la Extesion Zipaquira 20 de ellos realizan su matricula financiera y academica, finalizando el proceso con éxito."]
[null,null,"Extensión Soacha",null,null,null,{"$f":"171/188","v":0.90957446808510634},null,null,null,"Finalizado el proceso de inscripcion, admision y selección, de los 188  admitidos para la Extension Soacha, 171 de ellos realizan su matricula financiera y academica, finalizando el proceso con éxito."]
[]
[null,null,"Diagonal 18 No. 20-29 Fusagasugá – Cundinamarca\nTeléfono (601)  8281483 Línea Gratuita 018000180414\nwww.ucundinamarca.edu.co   E-mail:  info@ucundinamarca.edu.co\nNIT: 890.680.062-2                                                                             "]
[null,null,"Documento controlado por el Sistema de Gestión de la Calidad\nAsegúrese que corresponde a la última versión consultando el Portal Institucional"]
[]
[]
[]
[]
[]
[]
[]
[]
[null,null,null,null,null,null,"Estratégico",null,null,"Eficacia"]
[null,null,null,null,null,null,"Misional",null,null,"Eficiencia"]
[null,null,null,null,null,null,"Apoyo",null,null,"Acreditación"]
[null,null,null,null,null,null,"Seguimiento, Medición, Análisis y Evaluación",null,null,"Positiva"]
[null,null,null,null,null,null,"Direccionamiento Estratégico",null,null,"Negativa"]
[null,null,null,null,null,null,"Planeación Institucional",null,null,"Por Unidad Regional"]
[null,null,null,null,null,null,"Proyectos Especiales y Relaciones Interinstitucionales",null,null,"Por Facultad"]
[null,null,null,null,null,null,"Sistemas Integrados",null,null,"Por Programa Académico"]
[null,null,null,null,null,null,"Autoevaluación y Acreditación",null,null,"Por área"]
[null,null,null,null,null,null,"Comunicaciones",null,null,"Por Laboratorio"]
[null,null,null,null,null,null,"Formación y Aprendizaje",null,null,"Otros"]
[null,null,null,null,null,null,"Ciencia, Tecnología e Innovación",null,null,"No Aplica"]
[null,null,null,null,null,null,"Interacción Social Universitaria"]
[null,null,null,null,null,null,"Bienestar Universitario"]
[null,null,null,null,null,null,"Admisiones y Registro"]
[null,null,null,null,null,null,"Graduados"]
[null,null,null,null,null,null,"Dialogando con el Mundo"]
[null,null,null,null,null,null,"Talento Humano"]
[null,null,null,null,null,null,"Jurídica"]
[null,null,null,null,null,null,"Financiera"]
[null,null,null,null,null,null,"Sistemas y Tecnología"]
[null,null,null,null,null,null,"Bienes y Servicios"]
[null,null,null,null,null,null,"Documental"]
[null,null,null,null,null,null,"Apoyo Académico"]
[null,null,null,null,null,null,"Control Interno"]
[null,null,null,null,null,null,"Control Disciplinario"]
[null,null,null,null,null,null,"Servicio de Atención al Ciudadano"]

{"sheet":"MAR-7","index":3,"n_rows":98,"n_cols":15,"rows_kept":98,"cut":false,"hidden":false,"merged":[[1,1,3,2],[4,2,7,3],[4,4,4,11],[4,12,4,14],[5,4,5,11],[5,12,5,14],[6,4,7,11],[6,12,6,14],[7,12,7,14],[15,2,15,14],[8,2,8,14],[9,2,10,14],[11,2,11,3],[11,4,11,7],[11,8,11,9],[11,10,11,14],[12,2,12,3],[12,4,12,14],[13,2,13,3],[13,4,13,14],[14,2,14,14],[16,15,17,15],[17,2,18,3],[17,4,17,5],[17,6,17,10],[17,11,18,12],[17,13,18,14],[18,4,18,5],[18,6,18,10],[16,2,16,3],[16,4,16,6],[16,7,16,8],[16,9,16,10],[16,11,16,12],[16,13,16,14],[19,2,21,3],[19,4,21,6],[19,7,21,8],[19,9,21,10],[19,11,19,14],[22,13,23,14],[23,2,23,3],[23,4,23,6],[25,2,25,14],[26,2,42,8],[26,9,26,14],[42,9,42,14],[22,2,22,3],[22,4,22,6],[22,7,23,8],[22,9,23,10],[22,11,23,12],[53,2,53,5],[53,6,53,9],[53,10,53,14],[26,15,27,15],[27,9,32,14],[33,9,33,14],[34,9,39,14],[40,9,40,14],[41,9,41,14],[44,2,44,14],[51,2,51,14],[52,2,52,5],[52,6,52,9],[52,10,52,14],[54,2,54,5],[54,6,54,9],[54,10,54,14],[55,2,55,5],[55,6,55,9],[55,10,55,14],[56,2,56,5],[56,6,56,9],[56,10,56,14],[57,2,57,5],[57,6,57,9],[57,10,57,14],[61,2,61,14],[62,2,62,14],[58,2,58,5],[58,6,58,9],[58,10,58,14],[59,2,59,5],[59,6,59,9],[59,10,59,14]]}
[]
[null,"      REGRESAR"]
[]
[]
[null,null,null,null,"MACROPROCESO ESTRATÉGICO",null,null,null,null,null,null,null,"CÓDIGO: ESGr027"]
[null,null,null,null,"PROCESO GESTIÓN SISTEMAS INTEGRADOS - CALIDAD",null,null,null,null,null,null,null,"VERSIÓN: 8"]
[null,null,null,null,"MATRIZ DE MEDICIÓN Y SEGUIMIENTO A LOS PROCESOS DE GESTIÓN",null,null,null,null,null,null,null,"VIGENCIA: 2023-07-28"]
[null,null,null,null,null,null,null,null,null,null,null,null,"PÁGINA: 4 de 6"]
[]
[null,null,"FICHA DE INDICADOR"]
[]
[null,null,"MACROPROCESO",null,"Misional",null,null,null,"NOMBRE DEL INDICADOR",null,"Tasa de perdida de condición de estudiante "]
[null,null,"PROCESO GESTIÓN",null,"Admisiones y Registro"]
[null,null,"RESPONSABLE DE MEDICIÓN",null,"Jefe de Oficina Admisiones y Registro"]
[]
[null,null,"1. COMPORTAMIENTO DE INDICADOR"]
[null,null,"CLASIFICACIÓN DE LA MEDICIÓN",null,4,null,null,"TIPO DE INDICADOR",null,"Acreditación",null,"META",null,0.02]
[null,null,"FORMULA",null,"NUMERADOR",null,"Número de estudiantes que pierden condición de estudiante acorde con el reglamento estudiantil * 100",null,null,null,null,"UNIDAD DE MEDIDA",null,"Porcentaje"]
[null,null,null,null,"DENOMINADOR",null,"total de estudiantes"]
[null,null,"TENDENCIA",null,"Negativa",null,null,"NIVEL DE SEGREGACIÓN *",null,"Por Facultad",null,"ESCALA"]
[null,null,null,null,null,null,null,null,null,null,null,"Deficiente","Aceptable","Bueno","Excelente"]
[null,null,null,null,null,null,null,null,null,null,null,">5.1%","5% - 4.1%","4% - 3%"," 2.9% - 0%"]
[null,null,"ORIGEN DE DATOS NUMERADOR",null,"Listado de la Dirección de Sistemas y Tecnología",null,null,"FRECUENCIA DE LA MEDICIÓN",null,"SEMESTRAL",null,"FRECUENCIA DE RESULTADO",null,"SEMESTRAL"]
[null,null,"ORIGEN DE DATOS DENOMINADOR",null,"Listado de la Dirección de Sistemas y Tecnología"]
[]
[null,null,"RESULTADOS"]
[null,null,null,null,null,null,null,null,null,"ANÁLISIS DE DATOS"]
[null,null,null,null,null,null,null,null,null,"Teniendo en cuenta lo establecido en acuerdo (POR EL CUAL SE REGLAMENTA EL ARTICULO 42 DEL ACUERDO No. 010 DEL 12 DE JULIO DE 2006 \"POR EL CUAL SE EXPIDE EL REGLAMENTO ESTUDIANTIL PARA LOS PROGRAMAS DE PREGRADO DE LA UNIVERSIDAD DE CUNDINAMARCA\") 003 acuerda en su artículo primero que el estudiante de pregrado que pierda por tercera vez un núcleo temático perderá la calidad de estudiante y el acuerdo 004 en su artículo primero acuerda que esta normatividad empieza a regir en el primero de enero de 2019, esta normatividad esta aplicada para los programas de plan antiguo es decir no resignificados. \n\nDe acuerdo a la perdida de condición de estudiante se cuenta en este aspecto la normatividad y disposiciones orientadas en el ACUERDO 027 DE 2021 EN SU ARTICULO N°7, NUMERALES DE 01 AL 10, para los programas académicos con re significación curricular / rutas de aprendizaje numeral 07. donde indica El promedio ponderado acumulado sea inferior a tres dos (3.2) para los estudiantes de primer semestre el promedio acumulada será el mismos del semestre, de igual manera los estudiantes que pierdan tres veces el mismo campo de aprendizaje, perderán la condición de estudiante."]
[]
[]
[]
[]
[]
[null,null,null,null,null,null,null,null,null,"ACCIÓN FORMULADA"]
[null,null,null,null,null,null,null,null,null,"Con el fin de reducir la perdida de condición de estudiantes se realizará seguimiento a esta población presenten en cada periodo académico, tanto para los estudiantes de programas resignificados y no resignificados, a fin de identificarlos oportunamente, solicitar acompañamiento preventivo y establecer la aplicabilidad de la Normatividad Vigente.   \nImplementando alertas tempranas para los estudiantes que están por perder las asignaturas por segunda y tercera vez a las coordinaciones de programa académico que permiten que la academia identifique posibles casos y pueda generar estrategias para disminuir el número de estudiantes con pérdida de su condición.\n"]
[]
[]
[]
[]
[]
[null,null,null,null,null,null,null,null,null,"RESPONSABLE "]
[null,null,null,null,null,null,null,null,null,{"$f":"E14","v":"Jefe de Oficina Admisiones y Registro"}]
[]
[]
[null,null,"PERIODO DE EVALUACIÓN"]
[null,null,"MES",{"$f":"IF(J23=\"MENSUAL\",\"ENERO\",IF(J23=\"TRIMESTRAL\",\"MARZO\",IF(J23=\"SEMESTRAL\",\"JUNIO\",IF(J23=\"ANUAL\",YEAR(TODAY()),\"\"))))","v":"JUNIO"},{"$f":"IF(J23=\"MENSUAL\",\"FEBRERO\",IF(J23=\"TRIMESTRAL\",\"JUNIO\",IF(J23=\"SEMESTRAL\",\"DICIEMBRE\",\"\")))","v":"DICIEMBRE"},{"$f":"IF(J23=\"MENSUAL\",\"MARZO\",IF(J23=\"TRIMESTRAL\",\"SEPTIEMBRE\",\"\"))","v":""},{"$f":"IF(J23=\"MENSUAL\",\"ABRIL\",IF(J23=\"TRIMESTRAL\",\"DICIEMBRE\",\"\"))","v":""},{"$f":"IF(J23=\"MENSUAL\",\"MAYO\",\"\")","v":""},{"$f":"IF(J23=\"MENSUAL\",\"JUNIO\",\"\")","v":""},{"$f":"IF(J23=\"MENSUAL\",\"JULIO\",\"\")","v":""},{"$f":"IF(J23=\"MENSUAL\",\"AGOSTO\",\"\")","v":""},{"$f":"IF(J23=\"MENSUAL\",\"SEPTIEMBRE\",\"\")","v":""},{"$f":"IF(J23=\"MENSUAL\",\"OCTUBRE\",\"\")","v":""},{"$f":"IF(J23=\"MENSUAL\",\"NOVIEMBRE\",\"\")","v":""},{"$f":"IF(J23=\"MENSUAL\",\"DICIEMBRE\",\"\")","v":""}]
[null,null,{"$f":"G18","v":"Número de estudiantes que pierden condición de estudiante acorde con el reglamento estudiantil * 100"},256]
[null,null,{"$f":"G19","v":"total de estudiantes"},12289]
[null,null,"VALOR ",{"$f":"+D47/D48","v":2.0831638050288877E-2},{"$f":"IFERROR(IF($E$17=1,E47/E48,IF($E$17=2,E47,\"\")),\"\")","v":""},"","","","","","","","","",""]
[null,null,"META PONDERADA",0.02,null,{"$f":"IF(AND(N23=\"ANUAL\",J23=\"MENSUAL\"),N17/12+E50,IF(AND(N23=\"ANUAL\",J23=\"TRIMESTRAL\"),N17/4+E50,IF(AND(N23=\"SEMESTRAL\",J23=\"MENSUAL\"),N17/6+E50,IF(AND(N23=\"SEMESTRAL\",J23=\"TRIMESTRAL\"),N17/2,IF(AND(N23=\"TRIMESTRAL\",J23=\"MENSUAL\"),N17/3+E50,IF(AND(N23=\"TRIMESTRAL\",J23=\"TRIMESTRAL\"),N17,IF(AND(N23=\"MENSUAL\",J23=\"MENSUAL\"),N17,\"\")))))))","v":""},{"$f":"IF(AND(N23=\"ANUAL\",J23=\"MENSUAL\"),N17/12+F50,IF(AND(N23=\"ANUAL\",J23=\"TRIMESTRAL\"),N17/4+F50,IF(AND(N23=\"SEMESTRAL\",J23=\"MENSUAL\"),N17/6+F50,IF(AND(N23=\"SEMESTRAL\",J23=\"TRIMESTRAL\"),N17/2+F50,IF(AND(N23=\"TRIMESTRAL\",J23=\"MENSUAL\"),N17/3,IF(AND(N23=\"TRIMESTRAL\",J23=\"TRIMESTRAL\"),N17,IF(AND(N23=\"MENSUAL\",J23=\"MENSUAL\"),N17,\"\")))))))","v":""},{"$f":"IF(AND($N$23=\"ANUAL\",$J$23=\"MENSUAL\"),$N$17/12+G50,IF(AND(N23=\"SEMESTRAL\",J23=\"MENSUAL\"),N17/6+G50,IF(AND(N23=\"TRIMESTRAL\",J23=\"MENSUAL\"),N17/3+G50,IF(AND(N23=\"MENSUAL\",J23=\"MENSUAL\"),N17,\"\"))))","v":""},{"$f":"IF(AND($N$23=\"ANUAL\",$J$23=\"MENSUAL\"),$N$17/12+H50,IF(AND(N23=\"SEMESTRAL\",J23=\"MENSUAL\"),N17/6+H50,IF(AND(N23=\"TRIMESTRAL\",J23=\"MENSUAL\"),N17/3+H50,IF(AND(N23=\"MENSUAL\",J23=\"MENSUAL\"),N17,\"\"))))","v":""},{"$f":"IF(AND($N$23=\"ANUAL\",$J$23=\"MENSUAL\"),$N$17/12+I50,IF(AND(N23=\"SEMESTRAL\",J23=\"MENSUAL\"),N17/6,IF(AND(N23=\"TRIMESTRAL\",J23=\"MENSUAL\"),N17/3,IF(AND(N23=\"MENSUAL\",J23=\"MENSUAL\"),N17,\"\"))))","v":""},{"$f":"IF(AND($N$23=\"ANUAL\",$J$23=\"MENSUAL\"),$N$17/12+J50,IF(AND(N23=\"SEMESTRAL\",J23=\"MENSUAL\"),N17/6+J50,IF(AND(N23=\"TRIMESTRAL\",J23=\"MENSUAL\"),N17/3+J50,IF(AND(N23=\"MENSUAL\",J23=\"MENSUAL\"),N17,\"\"))))","v":""},{"$f":"IF(AND($N$23=\"ANUAL\",$J$23=\"MENSUAL\"),$N$17/12+K50,IF(AND(N23=\"SEMESTRAL\",J23=\"MENSUAL\"),N17/6+K50,IF(AND(N23=\"TRIMESTRAL\",J23=\"MENSUAL\"),N17/3+K50,IF(AND(N23=\"MENSUAL\",J23=\"MENSUAL\"),N17,\"\"))))","v":""},{"$f":"IF(AND($N$23=\"ANUAL\",$J$23=\"MENSUAL\"),$N$17/12+L50,IF(AND(N23=\"SEMESTRAL\",J23=\"MENSUAL\"),N17/6+L50,IF(AND(N23=\"TRIMESTRAL\",J23=\"MENSUAL\"),N17/3,IF(AND(N23=\"MENSUAL\",J23=\"MENSUAL\"),N17,\"\"))))","v":""},{"$f":"IF(AND($N$23=\"ANUAL\",$J$23=\"MENSUAL\"),$N$17/12+M50,IF(AND(N23=\"SEMESTRAL\",J23=\"MENSUAL\"),N17/6+M50,IF(AND(N23=\"TRIMESTRAL\",J23=\"MENSUAL\"),N17/3+M50,IF(AND(N23=\"MENSUAL\",J23=\"MENSUAL\"),N17,\"\"))))","v":""},{"$f":"IF(AND($N$23=\"ANUAL\",$J$23=\"MENSUAL\"),$N$17/12+N50,IF(AND(N23=\"SEMESTRAL\",J23=\"MENSUAL\"),N17/6+N50,IF(AND(N23=\"TRIMESTRAL\",J23=\"MENSUAL\"),N17/3+N50,IF(AND(N23=\"MENSUAL\",J23=\"MENSUAL\"),N17,\"\"))))","v":""}]
[]
[null,null,"NIVEL DE SEGREGACIÓN *"]
[null,null,"UNIDAD SEGREGADA (Ej. Facultad, Programa Académico, Área)",null,null,null,"RESULTADO",null,null,null,"ANALISIS DE DATOS SEGREGADO"]
[null,null,"Facultad de Ciencias Administrativas, Económicas y Contables",null,null,null,{"$f":"97/4953","v":1.9584090450232183E-2},null,null,null,"Para el IPA 2023, 97 estudiantes de la Facultad de Ciencias Administrativas, Económicas y Contables  perdieron  la condicion de estudiante, conforme al acuerdo 003 y 004 y Acuerdo 027 en la Universidad de Cundinamarca."]
[null,null,"Facultad de Ciencias Agropecuarias ",null,null,null,{"$f":"53/2010","v":2.6368159203980099E-2},null,null,null,"Para el IPA 2023, 53 estudiantes de la Facultad de Ciencias Agropecuarias perdieron la condicion de estudiante, conforme al acuerdo 003 y 004 y Acuerdo 027 en la Universidad de Cundinamarca."]
[null,null,"Facultad de Ciencias del Deporte",null,null,null,{"$f":"7/788","v":8.8832487309644676E-3},null,null,null,"Para el IPA 2023, 7 estudiantes de la Facultad de Ciencias del Deporte perdieron la condicion de estudiante, conforme al acuerdo 003 y 004 y Acuerdo 027 en la Universidad de Cundinamarca."]
[null,null,"Facultad de Educación",null,null,null,{"$f":"4/220","v":1.8181818181818181E-2},null,null,null,"Para el IPA 2023, 4 estudiantes de la Facultad de Educación perdieron condicion de estudiante, conforme al acuerdo 003 y 004 y Acuerdo 027 en la Universidad de Cundinamarca."]
[null,null,"Facultad de Ingeniería",null,null,null,{"$f":"94/3358","v":2.799285288862418E-2},null,null,null,"Para el IPA 2023, 94 estudiantes de la Facultad de Ingeniería perdieron la condicion de estudiante, conforme al acuerdo 003 y 004 y Acuerdo 027 en la Universidad de Cundinamarca."]
[null,null,"Facultad de Ciencias de la salud",null,null,null,{"$f":"0/394","v":0},null,null,null,"Para el IPA 2023, en la Facultad de Ciencias de la salud  no se presentó perdida de condicion de estudiante en la Universidad de Cundinamarca."]
[null,null,"Facultad de Ciencias Sociales, Humanidades y Ciencias Políticas",null,null,null,{"$f":"1/566","v":1.7667844522968198E-3},null,null,null,"Para el IPA 2023,1 estudiante de la Facultad de Ingeniería perdio la condicion de estudiante, conforme al acuerdo 003 y 004 y Acuerdo 027 en la Universidad de Cundinamarca."]
[]
[null,null,"Diagonal 18 No. 20-29 Fusagasugá – Cundinamarca\nTeléfono (601)  8281483 Línea Gratuita 018000180414\nwww.ucundinamarca.edu.co   E-mail:  info@ucundinamarca.edu.co\nNIT: 890.680.062-2                                                                             "]
[null,null,"Documento controlado por el Sistema de Gestión de la Calidad\nAsegúrese que corresponde a la última versión consultando el Portal Institucional"]
[]
[]
[]
[]
[]
[]
[]
[]
[null,null,null,null,null,null,"Estratégico",null,null,"Eficacia"]
[null,null,null,null,null,null,"Misional",null,null,"Eficiencia"]
[null,null,null,null,null,null,"Apoyo",null,null,"Acreditación"]
[null,null,null,null,null,null,"Seguimiento, Medición, Análisis y Evaluación",null,null,"Positiva"]
[null,null,null,null,null,null,"Direccionamiento Estratégico",null,null,"Negativa"]
[null,null,null,null,null,null,"Planeación Institucional",null,null,"Por Unidad Regional"]
[null,null,null,null,null,null,"Proyectos Especiales y Relaciones Interinstitucionales",null,null,"Por Facultad"]
[null,null,null,null,null,null,"Sistemas Integrados",null,null,"Por Programa Académico"]
[null,null,null,null,null,null,"Autoevaluación y Acreditación",null,null,"Por área"]
[null,null,null,null,null,null,"Comunicaciones",null,null,"Por Laboratorio"]
[null,null,null,null,null,null,"Formación y Aprendizaje",null,null,"Otros"]
[null,null,null,null,null,null,"Ciencia, Tecnología e Innovación",null,null,"No Aplica"]
[null,null,null,null,null,null,"Interacción Social Universitaria"]
[null,null,null,null,null,null,"Bienestar Universitario"]
[null,null,null,null,null,null,"Admisiones y Registro"]
[null,null,null,null,null,null,"Graduados"]
[null,null,null,null,null,null,"Dialogando con el Mundo"]
[null,null,null,null,null,null,"Talento Humano"]
[null,null,null,null,null,null,"Jurídica"]
[null,null,null,null,null,null,"Financiera"]
[null,null,null,null,null,null,"Sistemas y Tecnología"]
[null,null,null,null,null,null,"Bienes y Servicios"]
[null,null,null,null,null,null,"Documental"]
[null,null,null,null,null,null,"Apoyo Académico"]
[null,null,null,null,null,null,"Control Interno"]
[null,null,null,null,null,null,"Control Disciplinario"]
[null,null,null,null,null,null,"Servicio de Atención al Ciudadano"]

{"sheet":"MAR-9","index":4,"n_rows":95,"n_cols":15,"rows_kept":95,"cut":false,"hidden":false,"merged":[[1,1,3,2],[4,2,7,3],[4,4,4,11],[4,12,4,14],[5,4,5,11],[5,12,5,14],[6,4,7,11],[6,12,6,14],[7,12,7,14],[15,2,15,14],[8,2,8,14],[9,2,10,14],[11,2,11,3],[11,4,11,7],[11,8,11,9],[11,10,11,14],[12,2,12,3],[12,4,12,14],[13,2,13,3],[13,4,13,14],[14,2,14,14],[16,15,17,15],[17,2,18,3],[17,4,17,5],[17,6,17,10],[17,11,18,12],[17,13,18,14],[18,4,18,5],[18,6,18,10],[16,2,16,3],[16,4,16,6],[16,7,16,8],[16,9,16,10],[16,11,16,12],[16,13,16,14],[19,2,21,3],[19,4,21,6],[19,7,21,8],[19,9,21,10],[19,11,19,14],[22,13,23,14],[23,2,23,3],[23,4,23,6],[25,2,25,14],[26,2,42,8],[26,9,26,14],[42,9,42,14],[22,2,22,3],[22,4,22,6],[22,7,23,8],[22,9,23,10],[22,11,23,12],[53,2,53,5],[53,6,53,9],[53,10,53,14],[26,15,27,15],[27,9,32,14],[33,9,33,14],[34,9,39,14],[40,9,40,14],[41,9,41,14],[44,2,44,14],[51,2,51,14],[52,2,52,5],[52,6,52,9],[52,10,52,14],[54,2,54,5],[54,6,54,9],[54,10,54,14],[55,2,55,5],[55,6,55,9],[55,10,55,14],[58,2,58,14],[59,2,59,14],[56,2,56,5],[56,6,56,9],[56,10,56,14]]}
[]
[null,"      REGRESAR"]
[]
[]
[null,null,null,null,"MACROPROCESO ESTRATÉGICO",null,null,null,null,null,null,null,"CÓDIGO: ESGr027"]
[null,null,null,null,"PROCESO GESTIÓN SISTEMAS INTEGRADOS - CALIDAD",null,null,null,null,null,null,null,"VERSIÓN: 8"]
[null,null,null,null,"MATRIZ DE MEDICIÓN Y SEGUIMIENTO A LOS PROCESOS DE GESTIÓN",null,null,null,null,null,null,null,"VIGENCIA: 2023-07-28"]
[null,null,null,null,null,null,null,null,null,null,null,null,"PÁGINA: 5 de 6"]
[]
[null,null,"FICHA DE INDICADOR"]
[]
[null,null,"MACROPROCESO",null,"Misional",null,null,null,"NOMBRE DEL INDICADOR",null,"Percepción de satisfacción de los estudiantes"]
[null,null,"PROCESO GESTIÓN",null,"Admisiones y Registro"]
[null,null,"RESPONSABLE DE MEDICIÓN",null,"Jefe de Oficina Admisiones y Registro"]
[]
[null,null,"1. COMPORTAMIENTO DE INDICADOR"]
[null,null,"CLASIFICACIÓN DE LA MEDICIÓN",null,4,null,null,"TIPO DE INDICADOR",null,"Eficacia",null,"META",null,0.85]
[null,null,"FORMULA",null,"NUMERADOR",null,"(Total encuestas calificación mayor a 4) *100",null,null,null,null,"UNIDAD DE MEDIDA",null,"Porcentaje"]
[null,null,null,null,"DENOMINADOR",null," Total encuestas"]
[null,null,"TENDENCIA",null,"Positiva",null,null,"NIVEL DE SEGREGACIÓN *",null,"No Aplica",null,"ESCALA"]
[null,null,null,null,null,null,null,null,null,null,null,"Deficiente","Aceptable","Bueno","Excelente"]
[null,null,null,null,null,null,null,null,null,null,null,"0% - 65%","65.1% - 75%","75.1% -  85%","85.1% - 100%"]
[null,null,"ORIGEN DE DATOS NUMERADOR",null,"Resultado en encuestas",null,null,"FRECUENCIA DE LA MEDICIÓN",null,"SEMESTRAL",null,"FRECUENCIA DE RESULTADO",null,"SEMESTRAL"]
[null,null,"ORIGEN DE DATOS DENOMINADOR",null,"Resultado en encuestas"]
[]
[null,null,"RESULTADOS"]
[null,null,null,null,null,null,null,null,null,"ANÁLISIS DE DATOS"]
[null,null,null,null,null,null,null,null,null,"Para la oficina de Admisiones y Registro es de suma importancia conocer el grado de satisfacción de nuestros clientes para este caso la comunidad Universitaria, respecto a los trámites y servicios brindados, los cuales son procesos internos de la Oficina , de tal manera se realiza el análisis por medio de la encuesta de satisfacción U Cundinamarca siglo XXI para la vigencia IPA 2023, donde se evalúa los procesos como MARP 06 Grados y Títulos Académicos, MARP 02 Inscripción, Selección y Admisión de Estudiantes, MARP 07 Solicitud de Documentos, de los cuales 293 personas realizaron esta encuesta. \nComo resultado del ejercicio se logró evidenciar el aumento de la percepción satisfactorio en estos trámites o servicio como MARP 02 Inscripción, Selección y Admisión de Estudiantes, MARP 07 Solicitud de Documentos con un 73%.\n"]
[]
[]
[]
[]
[]
[null,null,null,null,null,null,null,null,null,"ACCIÓN FORMULADA"]
[null,null,null,null,null,null,null,null,null,"Para la vigencia IIPA  2023, se implementarán acompañamientos a los aspirantes a través de herramientas tecnológicas, reforzando de igual manera la estrategia de divulgación y publicidad de información de los procedimientos en general por medio del portal web   redes sociales, también capacitaciones, capsulas informativas y comunicación telefónica fomentando la equidad y diversidad. Para brindar una mejor información de los servicios y tramites de esta oficina se realizará la actualización del microstio web de la Oficina de Admisiones y Registro; respecto a Grados y Títulos académicos se dará acompañamiento a los graduandos para la revisión de su carpeta grado, como video del paso a paso del cargue de documentos y llamadas telefónicas. "]
[]
[]
[]
[]
[]
[null,null,null,null,null,null,null,null,null,"RESPONSABLE "]
[null,null,null,null,null,null,null,null,null,{"$f":"E14","v":"Jefe de Oficina Admisiones y Registro"}]
[]
[]
[null,null,"PERIODO DE EVALUACIÓN"]
[null,null,"MES",{"$f":"IF(J23=\"MENSUAL\",\"ENERO\",IF(J23=\"TRIMESTRAL\",\"MARZO\",IF(J23=\"SEMESTRAL\",\"JUNIO\",IF(J23=\"ANUAL\",YEAR(TODAY()),\"\"))))","v":"JUNIO"},{"$f":"IF(J23=\"MENSUAL\",\"FEBRERO\",IF(J23=\"TRIMESTRAL\",\"JUNIO\",IF(J23=\"SEMESTRAL\",\"DICIEMBRE\",\"\")))","v":"DICIEMBRE"},{"$f":"IF(J23=\"MENSUAL\",\"MARZO\",IF(J23=\"TRIMESTRAL\",\"SEPTIEMBRE\",\"\"))","v":""},{"$f":"IF(J23=\"MENSUAL\",\"ABRIL\",IF(J23=\"TRIMESTRAL\",\"DICIEMBRE\",\"\"))","v":""},{"$f":"IF(J23=\"MENSUAL\",\"MAYO\",\"\")","v":""},{"$f":"IF(J23=\"MENSUAL\",\"JUNIO\",\"\")","v":""},{"$f":"IF(J23=\"MENSUAL\",\"JULIO\",\"\")","v":""},{"$f":"IF(J23=\"MENSUAL\",\"AGOSTO\",\"\")","v":""},{"$f":"IF(J23=\"MENSUAL\",\"SEPTIEMBRE\",\"\")","v":""},{"$f":"IF(J23=\"MENSUAL\",\"OCTUBRE\",\"\")","v":""},{"$f":"IF(J23=\"MENSUAL\",\"NOVIEMBRE\",\"\")","v":""},{"$f":"IF(J23=\"MENSUAL\",\"DICIEMBRE\",\"\")","v":""}]
[null,null,{"$f":"G18","v":"(Total encuestas calificación mayor a 4) *100"},219]
[null,null,{"$f":"G19","v":" Total encuestas"},293]
[null,null,"VALOR ",{"$f":"+D47/D48","v":0.74744027303754268},{"$f":"IFERROR(IF($E$17=1,E47/E48,IF($E$17=2,E47,\"\")),\"\")","v":""},"","","","","","","","","",""]
[null,null,"META PONDERADA",0.85,null,{"$f":"IF(AND(N23=\"ANUAL\",J23=\"MENSUAL\"),N17/12+E50,IF(AND(N23=\"ANUAL\",J23=\"TRIMESTRAL\"),N17/4+E50,IF(AND(N23=\"SEMESTRAL\",J23=\"MENSUAL\"),N17/6+E50,IF(AND(N23=\"SEMESTRAL\",J23=\"TRIMESTRAL\"),N17/2,IF(AND(N23=\"TRIMESTRAL\",J23=\"MENSUAL\"),N17/3+E50,IF(AND(N23=\"TRIMESTRAL\",J23=\"TRIMESTRAL\"),N17,IF(AND(N23=\"MENSUAL\",J23=\"MENSUAL\"),N17,\"\")))))))","v":""},{"$f":"IF(AND(N23=\"ANUAL\",J23=\"MENSUAL\"),N17/12+F50,IF(AND(N23=\"ANUAL\",J23=\"TRIMESTRAL\"),N17/4+F50,IF(AND(N23=\"SEMESTRAL\",J23=\"MENSUAL\"),N17/6+F50,IF(AND(N23=\"SEMESTRAL\",J23=\"TRIMESTRAL\"),N17/2+F50,IF(AND(N23=\"TRIMESTRAL\",J23=\"MENSUAL\"),N17/3,IF(AND(N23=\"TRIMESTRAL\",J23=\"TRIMESTRAL\"),N17,IF(AND(N23=\"MENSUAL\",J23=\"MENSUAL\"),N17,\"\")))))))","v":""},{"$f":"IF(AND($N$23=\"ANUAL\",$J$23=\"MENSUAL\"),$N$17/12+G50,IF(AND(N23=\"SEMESTRAL\",J23=\"MENSUAL\"),N17/6+G50,IF(AND(N23=\"TRIMESTRAL\",J23=\"MENSUAL\"),N17/3+G50,IF(AND(N23=\"MENSUAL\",J23=\"MENSUAL\"),N17,\"\"))))","v":""},{"$f":"IF(AND($N$23=\"ANUAL\",$J$23=\"MENSUAL\"),$N$17/12+H50,IF(AND(N23=\"SEMESTRAL\",J23=\"MENSUAL\"),N17/6+H50,IF(AND(N23=\"TRIMESTRAL\",J23=\"MENSUAL\"),N17/3+H50,IF(AND(N23=\"MENSUAL\",J23=\"MENSUAL\"),N17,\"\"))))","v":""},{"$f":"IF(AND($N$23=\"ANUAL\",$J$23=\"MENSUAL\"),$N$17/12+I50,IF(AND(N23=\"SEMESTRAL\",J23=\"MENSUAL\"),N17/6,IF(AND(N23=\"TRIMESTRAL\",J23=\"MENSUAL\"),N17/3,IF(AND(N23=\"MENSUAL\",J23=\"MENSUAL\"),N17,\"\"))))","v":""},{"$f":"IF(AND($N$23=\"ANUAL\",$J$23=\"MENSUAL\"),$N$17/12+J50,IF(AND(N23=\"SEMESTRAL\",J23=\"MENSUAL\"),N17/6+J50,IF(AND(N23=\"TRIMESTRAL\",J23=\"MENSUAL\"),N17/3+J50,IF(AND(N23=\"MENSUAL\",J23=\"MENSUAL\"),N17,\"\"))))","v":""},{"$f":"IF(AND($N$23=\"ANUAL\",$J$23=\"MENSUAL\"),$N$17/12+K50,IF(AND(N23=\"SEMESTRAL\",J23=\"MENSUAL\"),N17/6+K50,IF(AND(N23=\"TRIMESTRAL\",J23=\"MENSUAL\"),N17/3+K50,IF(AND(N23=\"MENSUAL\",J23=\"MENSUAL\"),N17,\"\"))))","v":""},{"$f":"IF(AND($N$23=\"ANUAL\",$J$23=\"MENSUAL\"),$N$17/12+L50,IF(AND(N23=\"SEMESTRAL\",J23=\"MENSUAL\"),N17/6+L50,IF(AND(N23=\"TRIMESTRAL\",J23=\"MENSUAL\"),N17/3,IF(AND(N23=\"MENSUAL\",J23=\"MENSUAL\"),N17,\"\"))))","v":""},{"$f":"IF(AND($N$23=\"ANUAL\",$J$23=\"MENSUAL\"),$N$17/12+M50,IF(AND(N23=\"SEMESTRAL\",J23=\"MENSUAL\"),N17/6+M50,IF(AND(N23=\"TRIMESTRAL\",J23=\"MENSUAL\"),N17/3+M50,IF(AND(N23=\"MENSUAL\",J23=\"MENSUAL\"),N17,\"\"))))","v":""},{"$f":"IF(AND($N$23=\"ANUAL\",$J$23=\"MENSUAL\"),$N$17/12+N50,IF(AND(N23=\"SEMESTRAL\",J23=\"MENSUAL\"),N17/6+N50,IF(AND(N23=\"TRIMESTRAL\",J23=\"MENSUAL\"),N17/3+N50,IF(AND(N23=\"MENSUAL\",J23=\"MENSUAL\"),N17,\"\"))))","v":""}]
[]
[null,null,"NIVEL DE SEGREGACIÓN *"]
[null,null,"UNIDAD SEGREGADA (Ej. Facultad, Programa Académico, Área)",null,null,null,"RESULTADO",null,null,null,"ANALISIS DE DATOS SEGREGADO"]
[null,null,"MARP 06 Grados y Títulos Académicos",null,null,null,{"$f":"187/293","v":0.63822525597269619},null,null,null,"El nivel de satisfacción o persepción postiva con respecto del procedimiento de Grados y titulos academicos es del 64% con respecto de la población total encuestada. "]
[null,null,"MARP 02 Inscripción, Selección y Admisión de Estudiantes",null,null,null,{"$f":"215/293","v":0.7337883959044369},null,null,null,"El nivel de satisfacción o persepción postiva con respecto del procedimiento de Inscripción, Selección y Admisión de Estudiantes es del 73% con respecto de la población total encuestada. "]
[null,null,"MARP 07 Solicitud de Documentos",null,null,null,{"$f":"213/293","v":0.726962457337884},null,null,null,"El nivel de satisfacción o persepción postiva con respecto del procedimiento de Solicitud de Documentos es del 73% con respecto de la población total encuestada. "]
[]
[]
[null,null,"Diagonal 18 No. 20-29 Fusagasugá – Cundinamarca\nTeléfono (601)  8281483 Línea Gratuita 018000180414\nwww.ucundinamarca.edu.co   E-mail:  info@ucundinamarca.edu.co\nNIT: 890.680.062-2                                                                             "]
[null,null,"Documento controlado por el Sistema de Gestión de la Calidad\nAsegúrese que corresponde a la última versión consultando el Portal Institucional"]
[]
[]
[]
[]
[null,null,null,null,null,null,null,null,null,"Eficacia"]
[null,null,null,null,null,null,null,null,null,"Eficiencia"]
[null,null,null,null,null,null,null,null,null,"Acreditación "]
[null,null,null,null,null,null,null,null,null,"Control "]
[null,null,null,null,null,null,"Estratégico",null,null,"Eficacia"]
[null,null,null,null,null,null,"Misional",null,null,"Eficiencia"]
[null,null,null,null,null,null,"Apoyo",null,null,"Acreditación"]
[null,null,null,null,null,null,"Seguimiento, Medición, Análisis y Evaluación",null,null,"Positiva"]
[null,null,null,null,null,null,"Direccionamiento Estratégico",null,null,"Negativa"]
[null,null,null,null,null,null,"Planeación Institucional",null,null,"Por Unidad Regional"]
[null,null,null,null,null,null,"Proyectos Especiales y Relaciones Interinstitucionales",null,null,"Por Facultad"]
[null,null,null,null,null,null,"Sistemas Integrados",null,null,"Por Programa Académico"]
[null,null,null,null,null,null,"Autoevaluación y Acreditación",null,null,"Por área"]
[null,null,null,null,null,null,"Comunicaciones",null,null,"Por Laboratorio"]
[null,null,null,null,null,null,"Formación y Aprendizaje",null,null,"Otros"]
[null,null,null,null,null,null,"Ciencia, Tecnología e Innovación",null,null,"No Aplica"]
[null,null,null,null,null,null,"Interacción Social Universitaria"]
[null,null,null,null,null,null,"Bienestar Universitario"]
[null,null,null,null,null,null,"Admisiones y Registro"]
[null,null,null,null,null,null,"Graduados"]
[null,null,null,null,null,null,"Dialogando con el Mundo"]
[null,null,null,null,null,null,"Talento Humano"]
[null,null,null,null,null,null,"Jurídica"]
[null,null,null,null,null,null,"Financiera"]
[null,null,null,null,null,null,"Sistemas y Tecnología"]
[null,null,null,null,null,null,"Bienes y Servicios"]
[null,null,null,null,null,null,"Documental"]
[null,null,null,null,null,null,"Apoyo Académico"]
[null,null,null,null,null,null,"Control Interno"]
[null,null,null,null,null,null,"Control Disciplinario"]
[null,null,null,null,null,null,"Servicio de Atención al Ciudadano"]

{"sheet":"ACTUALIZACIONES","index":5,"n_rows":29,"n_cols":5,"rows_kept":29,"cut":false,"hidden":false,"merged":[[1,2,1,3],[1,1,4,1],[25,1,25,4],[28,1,28,4],[6,1,6,4],[3,2,4,3],[2,2,2,3]]}
[]
[null,null,"MACROPROCESO ESTRATÉGICO",null,"CÓDIGO: ESGr027"]
[null,null,"PROCESO GESTIÓN SISTEMAS INTEGRADOS - CALIDAD",null,"VERSIÓN: 8"]
[null,null,"MATRIZ DE MEDICIÓN Y SEGUIMIENTO A LOS PROCESOS DE GESTIÓN",null,"VIGENCIA: 2023-07-28"]
[null,null,null,null,"PÁGINA: 6 de 6"]
[]
[null,"CONTROL DE ACTUALIZACIONES"]
[null,"FECHA","DESCRIPCIÓN DE LA ACTUALIZACIÓN","RESPONSABLE","CARGO"]
[null,"2022-08-19"," Eliminación del inidcador MAR02 al evidenciar que no agrega valor a procedimiento de inscripcion, selección y admision de estudiantes ","OFICINA DE ADMISIONES Y REGISTRO ","JEFE OFICINA DE ADMISIONES "]
[null,"2022-08-19","Actualizacion a la formula y metodo de medicion del indicador MAR04 ya que no se tenia en cuenta la informacion relacionada con los cupos dispuestos según registros calificados de los programas académicos ","OFICINA DE ADMISIONES Y REGISTRO ","JEFE OFICINA DE ADMISIONES "]
[null,"2022-08-19","Actualizacion a la formula y metodo de medicion del indicador MAR05 ya que no se tenia en cuenta la informacion relacionada con los cupos dispuestos según registros calificados de los programas académicos ","OFICINA DE ADMISIONES Y REGISTRO ","JEFE OFICINA DE ADMISIONES "]
[null,"2023-04-13","Actualización a la formula, meta y escala en el indicador MAR4-MAR5, esto con el fin de generar un ambiente retador para el proceso en 2023, ya que para 2022 se mantuvo la constante en la meta semestral por encima del 95 %","OFICINA DE ADMISIONES Y REGISTRO ","JEFE OFICINA DE ADMISIONES "]
[null,"2023-04-13","Eliminación del indicador MAR8, donde queda establecido como compromiso que la información relacionada con el número de admitidos en condiciones priorizadas se deberá migrar a un tablero de control, cargado a la página web institucional, donde se evidencie la información histórica por periodos. ","OFICINA DE ADMISIONES Y REGISTRO ","JEFE OFICINA DE ADMISIONES "]
[]
[]
[]
[]
[]
[]
[]
[]
[]
[]
[]
[]
[null,"Diagonal 18 No. 20-29 Fusagasugá – Cundinamarca\nTeléfono (601)  8281483 Línea Gratuita 018000180414\nwww.ucundinamarca.edu.co   E-mail:  info@ucundinamarca.edu.co\nNIT: 890.680.062-2                                                                             "]
[]
[]
[null,"Documento controlado por el Sistema de Gestión de la Calidad\nAsegúrese que corresponde a la última versión consultando el Portal Institucional"]

{"sheet":"ITEM","index":6,"n_rows":4,"n_cols":3,"rows_kept":4,"cut":false,"hidden":true,"merged":[]}
["MENSUAL",null,"NÚMERO"]
["TRIMESTRAL",null,"PORCENTAJE"]
["SEMESTRAL"]
["ANUAL"]